{"text_format":"1","workbook":"xlsx","n_sheets":9,"sheets":["Fixturlaser Aligment","Multimetre-Megger","Torque Wrench","Pompe Hydraulique","Erad-Vrad","Chantier","Réparation-Calibration","Jetés","Menu déroulant"],"not_rendered":{"charts":0,"images":22,"macros":1,"external_links":1,"defined_names":2,"comments":0,"pivot_tables":0},"unopened":[],"bounds":{"document_bytes":16777216,"sheet_cells":100000,"rows_first":2000,"rows_last":500,"rows_between":2000,"halvings":0,"cell_chars":16384,"cell_head_chars":4096},"cells_cut":0,"cells_raw":0,"read":"whole","date_system":"1900"}

{"sheet":"Fixturlaser Aligment","index":0,"n_rows":99,"n_cols":7,"rows_kept":99,"cut":false,"hidden":false,"merged":[[0,0,0,1],[0,3,0,4],[0,5,0,6]]}
[]
[]
["Département","Identifiant Unique","Description Outil","# Série","État","Calibration Due Date","#Projet du lieu de l'item"]
["Mécanique","T-386","Fixturlaser Shafthog",13784,"Au Chantier","2016-12-14"]
["Mécanique","T-422","Fixturlaser Shafthog",13178,"A la Shop","2016-12-14"]
["Mécanique","T-025","Fixturlaser Gopro","56628-66632","A la Shop","2016-12-17"]
["Mécanique","T-006","Fixturlaser Gopro","56343-66342","A la Shop","2017-02-08"]
["Mécanique","T-024","Fixturlaser Gopro","56620-66620","A la Shop","2016-12-16"]
["Mécanique","T-515","Fixturlaser Gopro","57795-67786","A la Shop","2017-02-05"]
["Mécanique","T-514","Fixturlaser Gopro","57796-67787","A la Shop","2017-01-16"]
["Mécanique","T-513","Fixturlaser Gopro","57898-67890","A la Shop","2017-02-09"]
["Mécanique","T-556","Fixturlaser Gopro","57932-67904","A la Shop","2016-12-14"]
[null,"T-"]
[null,"T-"]
[null,"T-"]
[null,"T-"]
[null,"T-"]
[null,"T-"]
[null,"T-"]
[null,"T-"]
[null,"T-"]
[null,"T-"]
[null,"T-"]
[null,"T-"]
[null,"T-"]
[null,"T-"]
[null,"T-"]
[null,"T-"]
[null,"T-"]
[null,"T-"]
[null,"T-"]
[null,"T-"]
[null,"T-"]
[null,"T-"]
[null,"T-"]
[null,"T-"]
[null,"T-"]
[null,"T-"]
[null,"T-"]
[null,"T-"]
[null,"T-"]
[null,"T-"]
[null,"T-"]
[null,"T-"]
[null,"T-"]
[null,"T-"]
[null,"T-"]
[null,"T-"]
[null,"T-"]
[null,"T-"]
[null,"T-"]
[null,"T-"]
[null,"T-"]
[null,"T-"]
[null,"T-"]
[null,"T-"]
[null,"T-"]
[null,"T-"]
[null,"T-"]
[null,"T-"]
[null,"T-"]
[null,"T-"]
[null,"T-"]
[null,"T-"]
[null,"T-"]
[null,"T-"]
[null,"T-"]
[null,"T-"]
[null,"T-"]
[null,"T-"]
[null,"T-"]
[null,"T-"]
[null,"T-"]
[null,"T-"]
[null,"T-"]
[null,"T-"]
[null,"T-"]
[null,"T-"]
[null,"T-"]
[null,"T-"]
[null,"T-"]
[null,"T-"]
[null,"T-"]
[null,"T-"]
[null,"T-"]
[null,"T-"]
[null,"T-"]
[null,"T-"]
[null,"T-"]
[null,"T-"]
[null,"T-"]
[null,"T-"]
[null,"T-"]
[null,"T-"]
[null,"T-"]
[null,"T-"]
[null,"T-"]
[null,"T-"]
[null,"T-"]

{"sheet":"Multimetre-Megger","index":1,"n_rows":99,"n_cols":7,"rows_kept":99,"cut":false,"hidden":false,"merged":[[0,0,0,1],[0,5,0,6]]}
[]
[]
["Département","Identifiant Unique","Description Outil","# Série","État","Calibration Due Date","#Projet du lieu de l'item"]
["Mécanique","T-728","Multimetre Fluke 175",26710596]
["Mécanique","T-729","Multimetre Fluke 175",26870335]
["Mécanique","T-730","Multimetre Fluke 175",26870322]
["Mécanique","T-731","Multimetre Fluke 175",26870331]
["Mécanique","T-732","Multimetre Fluke 175",26870332]
["Mécanique","T-735","Multimetre Fluke 175",26870334]
["Mécanique","T-733","Multimetre Fluke 175",26870333]
["Mécanique","T-252","Multimetre Fluke 175",30670216]
["Mécanique","T-253","Multimetre Fluke 175",30600496]
["Mécanique","T-254","Multimetre Fluke 175",30670218]
["Mécanique","T-255","Multimetre Fluke 175",30640755]
["Mécanique","T-276","Multimetre Fluke 175",31420292]
["Mécanique","T-277","Multimetre Fluke 175",30670227]
["Mécanique","T-839","Multimetre Fluke 175",35190344]
["Mécanique","T-840","Multimetre Fluke 175",35420094]
["Mécanique","T-841","Multimetre Fluke 175",35420070]
["Mécanique","T-278","Multimetre Fluke 175",30670226]
["Département","Identifiant Unique","Description Outil","# Série","État","Calibration Due Date","#Projet du lieu de l'item"]
["Mécanique","T113","Multimetre Fluke 179",12720644]
["Mécanique","T114","Multimetre Fluke 179",12720643]
["Mécanique","T115","Multimetre Fluke 179",11910510]
["Mécanique","T124","Multimetre Fluke 179",29320424]
["Mécanique","T112","Multimetre Fluke 179",12860448]
["Mécanique","RPF 743","Multimetre Fluke 179",12860446]
["Département","Identifiant Unique","Description Outil","# Série","État","Calibration Due Date","#Projet du lieu de l'item"]
["Mécanique","T-388","Multimetre Fluke 1507",20970054]
["Mécanique","T-389","Multimetre Fluke 1507",20970055]
["Mécanique","T-390","Multimetre Fluke 1507",21460176]
["Mécanique","T-391","Multimetre Fluke 1507",21460180]
["Mécanique","T-500","Multimetre Fluke 1503",22670085]
["Mécanique","T-501","Multimetre Fluke 1503",22670083]
["Mécanique","T-010","Multimetre Fluke 1507",26501045]
["Mécanique","T-392","Multimetre Fluke 1507",21460178]
["Département","Identifiant Unique","Description Outil","# Série","État","Calibration Due Date","#Projet du lieu de l'item"]
["Mécanique","T-015","Flike 1587",28070157]
["Mécanique","T-016","Fluke 1587",28070150]
["Mécanique","T-275","Fluke 1587",32100091]
["Mécanique","T-279","Fluke 1587",32100042]
["Mécanique","T-280","Fluke 1587",32460245]
["Département","Identifiant Unique","Description Outil","# Série","État","Calibration Due Date","#Projet du lieu de l'item"]
["Mécanique","T-765","Fluke 789",27520023]
[null,"T-"]
[null,"T-"]
[null,"T-"]
[null,"T-"]
[null,"T-"]
[null,"T-"]
[null,"T-"]
[null,"T-"]
[null,"T-"]
[null,"T-"]
[null,"T-"]
[null,"T-"]
[null,"T-"]
[null,"T-"]
[null,"T-"]
[null,"T-"]
[null,"T-"]
[null,"T-"]
[null,"T-"]
[null,"T-"]
[null,"T-"]
[null,"T-"]
[null,"T-"]
[null,"T-"]
[null,"T-"]
[null,"T-"]
[null,"T-"]
[null,"T-"]
[null,"T-"]
[null,"T-"]
[null,"T-"]
[null,"T-"]
[null,"T-"]
[null,"T-"]
[null,"T-"]
[null,"T-"]
[null,"T-"]
[null,"T-"]
[null,"T-"]
[null,"T-"]
[null,"T-"]
[null,"T-"]
[null,"T-"]
[null,"T-"]
[null,"T-"]
[null,"T-"]
[null,"T-"]
[null,"T-"]
[null,"T-"]
[null,"T-"]
[null,"T-"]
[null,"T-"]
[null,"T-"]
[null,"T-"]
[null,"T-"]

{"sheet":"Torque Wrench","index":2,"n_rows":99,"n_cols":7,"rows_kept":99,"cut":false,"hidden":false,"merged":[[0,0,0,1],[0,5,0,6]]}
[]
[]
["Département","Identifiant Unique","Description Outil","# Série","État","Calibration Due Date","#Projet du lieu de l'item"]
["Mécanique","T-142",{"$f":"'[1]Torque Wrench'!C3","v":"Torque wrench 1/4\"  drive Gearwrench"},{"$f":"'[1]Torque Wrench'!E3","v":12046332}]
["Mécanique","T-143",{"$f":"'[1]Torque Wrench'!C4","v":"Torque wrench 1/4\"  drive Gearwrench"},{"$f":"'[1]Torque Wrench'!E4","v":12046107}]
["Mécanique","T-382",{"$f":"'[1]Torque Wrench'!C5","v":"Torque wrench 1/4 Jet"},{"$f":"'[1]Torque Wrench'!E5","v":5120210830}]
["Mécanique","T-794",{"$f":"'[1]Torque Wrench'!C6","v":"Torque Wrench 1/4 drive CDI 1501MRMH"},{"$f":"'[1]Torque Wrench'!E6","v":415039766}]
["Mécanique","T-796",{"$f":"'[1]Torque Wrench'!C7","v":"Torque Wrench 1/4 drive CDI 1501MRMH"},{"$f":"'[1]Torque Wrench'!E7","v":415039767}]
["Mécanique","T-807",{"$f":"'[1]Torque Wrench'!C8","v":"Torque Wrench 1/4 Drive Proto"},{"$f":"'[1]Torque Wrench'!E8","v":"DNB07221"}]
["Département","Identifiant Unique","Description Outil","# Série","État","Calibration Due Date","#Projet du lieu de l'item"]
["Mécanique","T-791",{"$f":"'[1]Torque Wrench'!C11","v":"Torque Wrench 3/8 Dynamic Tool"},"d086001"]
["Mécanique","T-384",{"$f":"'[1]Torque Wrench'!C12","v":"Torque wrench 3/8 jet"},11110216]
["Mécanique","T-144",{"$f":"'[1]Torque Wrench'!C13","v":"Torque wrench 3/8\"  drive Gearwrench"},5120172471]
["Mécanique","T-265",{"$f":"'[1]Torque Wrench'!C14","v":"Torque wrench 3/8\"  drive Gearwrench"},415010003]
["Mécanique","T-266",{"$f":"'[1]Torque Wrench'!C15","v":"Torque wrench 3/8\"  drive Gearwrench"},414120060]
["Mécanique","T-267",{"$f":"'[1]Torque Wrench'!C16","v":"Torque wrench 3/8\"  drive Gearwrench"},414101118]
["Mécanique","T-269",{"$f":"'[1]Torque Wrench'!C17","v":"Torque wrench 3/8\"  drive Gearwrench"},414100980]
["Mécanique","T-576",{"$f":"'[1]Torque Wrench'!C18","v":"Torque 3/8 (kit slipring)"},19355]
["Mécanique","T-574",{"$f":"'[1]Torque Wrench'!C19","v":"Torque wrench 3/8 drive Precision "},19356]
["Mécanique","T-575",{"$f":"'[1]Torque Wrench'!C20","v":"Torque wrench 3/8 drive Precision "},19357]
["Mécanique","T-577",{"$f":"'[1]Torque Wrench'!C21","v":"Torque wrench 3/8 drive Precision "},19358]
["Mécanique","T-578",{"$f":"'[1]Torque Wrench'!C22","v":"Torque wrench 3/8 drive Precision "},19362]
["Mécanique","T-579",{"$f":"'[1]Torque Wrench'!C23","v":"Torque wrench 3/8 drive Precision "},19363]
["Mécanique","T-309",{"$f":"'[1]Torque Wrench'!C24","v":"Torque wrench 3/8 drive ULTRAPRO"},5261]
["Mécanique","T-012",{"$f":"'[1]Torque Wrench'!C25","v":"Torque wrench 3/8 drive Top tul"},180643]
["Mécanique","T-734",{"$f":"'[1]Torque Wrench'!C26","v":"Torque wrench 3/8 drive ULTRAPRO"},"A201300193"]
["Mécanique","T-1453",{"$f":"'[1]Torque Wrench'!C27","v":"Torque Wrench 3/8 drive CDI"},215804728]
["Mécanique","T-145",{"$f":"'[1]Torque Wrench'!C28","v":"Torque wrench 3/8\"  drive Gearwrench"},5110964460]
["Mécanique","T-268",{"$f":"'[1]Torque Wrench'!C29","v":"Torque wrench 3/8\"  drive Gearwrench"},414100967]
["Mécanique","T-####",{"$f":"'[1]Torque Wrench'!C30","v":"Torque wrench 3/8 drive Toptul"},255782]
["Département","Identifiant Unique","Description Outil","# Série","État","Calibration Due Date","#Projet du lieu de l'item"]
["Mécanique","T-571","Torque wrench 1/2 drive Precision "]
["Mécanique","T-529","Torque wrench 1/2 drive Precision"]
["Mécanique","T-573","Torque wrench 1/2 drive Precision "]
["Mécanique","T-595","Torque wrench 1/2 drive Precision "]
["Mécanique","T-594","Torque wrench 1/2 drive Precision "]
["Mécanique","T-527","Torque wrench 1/2 drive Precision"]
["Mécanique","T-528","Torque wrench 1/2 drive Precision"]
["Mécanique","T-051","Torque wrench 1/2 drive Gearwrench"]
["Mécanique","T-117","Torque wrench 1/2 drive CDI 2503MFRMH"]
["Mécanique","T-118","Torque wrench 1/2 drive CDI 2503MFRMH"]
["Mécanique","T-119","Torque wrench 1/2 drive CDI 2503MFRMH"]
["Mécanique","T-120","Torque wrench 1/2 drive CDI 2503MFRMH"]
["Mécanique","T-122","Torque wrench 1/2 drive CDI 2503MFRMH"]
["Mécanique","T-133","Torque Wrench 1/2 drive Westward"]
["Mécanique","T-052","Torque wrench 1/2 drive Gearwrench"]
["Mécanique","T-381","Torque wrench 1/2 drive Gearwrench"]
["Mécanique","T-382","Torque wrench 1/2 drive Gearwrench"]
["Mécanique","T-600","Torque wrench KtPro"]
["Mécanique","T-428","Torque wrench 1/2 drive top tul"]
["Mécanique","T-557","Torque wrench 1/2 drive Ultrapro 17015"]
["Mécanique","T-572","Torque wrench 1/2 drive Precision"]
["Mécanique","T-762","Torque wrench 1/2 Mastercraft"]
["Mécanique","T-307","Torque wrench 1/2 PROTO"]
["Mécanique","T-308","Torque wrench 1/2 PROTO"]
["Mécanique","T-319","Torque Wrench 1/2 Stahlville"]
["Mécanique","T-1454","Torque wrench 1/2 drive CDI 2503MFRMH"]
["Mécanique","T-471","Torque Wrench 1/2 drive CDI"]
["Mécanique","T-472","Torque Wrench 1/2 drive CDI"]
["Mécanique","T-473","Torque Wrench 1/2 drive CDI"]
["Mécanique","T-806","Torque Wrench 1/2 drive CDI"]
["Mécanique","T-804","Torque Wrench 1/2 drive CDI"]
["Mécanique","T-805","Torque Wrechn 1/2 drive CDI"]
["Mécanique","T-351","Torque wrench 1/2 drive Gearwrench"]
["Mécanique","T-038","Torque wrench 1/2 drive Gearwrench"]
["Mécanique","T-555","Torque wrench 1/2 drive Precision"]
["Mécanique","T-011","Torque wrench 1/2 drive Top tul"]
["Mécanique","T-134","Torque Wrench 1/2 drive Westward"]
["Département","Identifiant Unique","Description Outil","# Série","État","Calibration Due Date","#Projet du lieu de l'item"]
["Mécanique","T-580","Torque wrench 3/4 drive Precision "]
["Mécanique","T-581","Torque wrench 3/4 drive Precision "]
["Mécanique","T-582","Torque wrench 3/4 drive Precision "]
["Mécanique","T-385","Torque wrench 3/4 drive Gearwrench"]
["Mécanique","T-044","Torque wrench 3/4 drive K-D tool"]
["Mécanique","T-045","Torque wrench 3/4 drive K-D tools"]
["Mécanique","T-050","Torque wrench 3/4 drive K-D tools"]
["Mécanique","T-121","Torque wrench 3/4 drive CDI 6004MFRMH "]
["Mécanique","T-126","Torque wrench 3/4 drive CDI 6004MFRMH "]
["Mécanique","T-128","Torque wrench 3/4 drive CDI 6004MFRMH "]
["Mécanique","T-132","Torque wrench 3/4 drive WESTWARD-TWA12"]
["Mécanique","T-127","Torque wrench 3/4 drive CDI 6004MFRMH "]
["Mécanique","T-150","Torque wrench Ultrapro 3/4 drive"]
["Mécanique","T-256","Torque wrench 3/4 drive CDI 6004MFRMH "]
["Mécanique","T-257","Torque wrench 3/4 drive CDI 6004MFRMH "]
["Mécanique","T-258","Torque wrench 3/4 drive CDI 6004MFRMH "]
["Mécanique","T-182","Torque wrench 3/4 drive CDI 6004MFRMH "]
["Mécanique","T-274","Torque wrench 3/4 JET JTW-3800"]
["Mécanique","T-1452"]
["Mécanique","T-1451"]
["Mécanique","T-560","Torque wrench 3/4 drive Precision "]
["Mécanique","T-129","Torque wrench 3/4 drive Precision "]
["Mécanique","T-019","Torque wrench 3/4 drive Precision "]
["Mécanique","T-020","Torque wrench 3/4 drive Precision "]
["Mécanique","T-601","Torque wrench 3/4 drive Precision "]
["Mécanique","T-429","Torque wrench 3/4 drive CDI"]
["Mécanique","T-540","Torque wrench Ultrapro 3/4 drive"]
[null,"T-"]
[null,"T-"]
[null,"T-"]

{"sheet":"Pompe Hydraulique","index":3,"n_rows":99,"n_cols":7,"rows_kept":99,"cut":false,"hidden":false,"merged":[[0,0,0,1],[0,3,0,4],[0,5,0,6]]}
[]
[]
["Département","Identifiant Unique","Description Outil","# Série","État","Calibration Due Date","#Projet du lieu de l'item"]
[null,"T-"]
[null,"T-"]
[null,"T-"]
[null,"T-"]
[null,"T-"]
[null,"T-"]
[null,"T-"]
[null,"T-"]
[null,"T-"]
[null,"T-"]
[null,"T-"]
[null,"T-"]
[null,"T-"]
[null,"T-"]
[null,"T-"]
[null,"T-"]
[null,"T-"]
[null,"T-"]
[null,"T-"]
[null,"T-"]
[null,"T-"]
[null,"T-"]
[null,"T-"]
[null,"T-"]
[null,"T-"]
[null,"T-"]
[null,"T-"]
[null,"T-"]
[null,"T-"]
[null,"T-"]
[null,"T-"]
[null,"T-"]
[null,"T-"]
[null,"T-"]
[null,"T-"]
[null,"T-"]
[null,"T-"]
[null,"T-"]
[null,"T-"]
[null,"T-"]
[null,"T-"]
[null,"T-"]
[null,"T-"]
[null,"T-"]
[null,"T-"]
[null,"T-"]
[null,"T-"]
[null,"T-"]
[null,"T-"]
[null,"T-"]
[null,"T-"]
[null,"T-"]
[null,"T-"]
[null,"T-"]
[null,"T-"]
[null,"T-"]
[null,"T-"]
[null,"T-"]
[null,"T-"]
[null,"T-"]
[null,"T-"]
[null,"T-"]
[null,"T-"]
[null,"T-"]
[null,"T-"]
[null,"T-"]
[null,"T-"]
[null,"T-"]
[null,"T-"]
[null,"T-"]
[null,"T-"]
[null,"T-"]
[null,"T-"]
[null,"T-"]
[null,"T-"]
[null,"T-"]
[null,"T-"]
[null,"T-"]
[null,"T-"]
[null,"T-"]
[null,"T-"]
[null,"T-"]
[null,"T-"]
[null,"T-"]
[null,"T-"]
[null,"T-"]
[null,"T-"]
[null,"T-"]
[null,"T-"]
[null,"T-"]
[null,"T-"]
[null,"T-"]
[null,"T-"]
[null,"T-"]
[null,"T-"]
[null,"T-"]

{"sheet":"Erad-Vrad","index":4,"n_rows":99,"n_cols":7,"rows_kept":99,"cut":false,"hidden":false,"merged":[[0,0,0,1],[0,5,0,6]]}
[]
[]
["Département","Identifiant Unique","Description Outil","# Série","État","Calibration Due Date","#Projet du lieu de l'item"]
[null,"T-"]
[null,"T-"]
[null,"T-"]
[null,"T-"]
[null,"T-"]
[null,"T-"]
[null,"T-"]
[null,"T-"]
[null,"T-"]
[null,"T-"]
[null,"T-"]
[null,"T-"]
[null,"T-"]
[null,"T-"]
[null,"T-"]
[null,"T-"]
[null,"T-"]
[null,"T-"]
[null,"T-"]
[null,"T-"]
[null,"T-"]
[null,"T-"]
[null,"T-"]
[null,"T-"]
[null,"T-"]
[null,"T-"]
[null,"T-"]
[null,"T-"]
[null,"T-"]
[null,"T-"]
[null,"T-"]
[null,"T-"]
[null,"T-"]
[null,"T-"]
[null,"T-"]
[null,"T-"]
[null,"T-"]
[null,"T-"]
[null,"T-"]
[null,"T-"]
[null,"T-"]
[null,"T-"]
[null,"T-"]
[null,"T-"]
[null,"T-"]
[null,"T-"]
[null,"T-"]
[null,"T-"]
[null,"T-"]
[null,"T-"]
[null,"T-"]
[null,"T-"]
[null,"T-"]
[null,"T-"]
[null,"T-"]
[null,"T-"]
[null,"T-"]
[null,"T-"]
[null,"T-"]
[null,"T-"]
[null,"T-"]
[null,"T-"]
[null,"T-"]
[null,"T-"]
[null,"T-"]
[null,"T-"]
[null,"T-"]
[null,"T-"]
[null,"T-"]
[null,"T-"]
[null,"T-"]
[null,"T-"]
[null,"T-"]
[null,"T-"]
[null,"T-"]
[null,"T-"]
[null,"T-"]
[null,"T-"]
[null,"T-"]
[null,"T-"]
[null,"T-"]
[null,"T-"]
[null,"T-"]
[null,"T-"]
[null,"T-"]
[null,"T-"]
[null,"T-"]
[null,"T-"]
[null,"T-"]
[null,"T-"]
[null,"T-"]
[null,"T-"]
[null,"T-"]
[null,"T-"]
[null,"T-"]
[null,"T-"]

{"sheet":"Chantier","index":5,"n_rows":3,"n_cols":7,"rows_kept":3,"cut":false,"hidden":false,"merged":[]}
["Département","Identifiant Unique","Description Outil","# Série","État","Calibration Due Date","#Projet du lieu de l'item"]
["Mécanique","T-386","Fixturlaser Shafthog",13784,"Au Chantier","2016-12-14"]
["Mécanique","asd","Torque Wrench - asd","asd","Au Chantier","asd","asd"]

{"sheet":"Réparation-Calibration","index":6,"n_rows":1,"n_cols":7,"rows_kept":1,"cut":false,"hidden":false,"merged":[]}
["Département","Identifiant Unique","Description Outil","# Série","État","Calibration Due Date","#Projet du lieu de l'item"]

{"sheet":"Jetés","index":7,"n_rows":1,"n_cols":7,"rows_kept":1,"cut":false,"hidden":false,"merged":[]}
["Département","Identifiant Unique","Description Outil","# Série","État","Calibration Due Date","#Projet du lieu de l'item"]

{"sheet":"Menu déroulant","index":8,"n_rows":6,"n_cols":2,"rows_kept":6,"cut":false,"hidden":false,"merged":[]}
["Département","État"]
[]
["Mécanique","En Réparation/Calibration"]
["Composite","Jetés"]
[null,"Au Chantier"]
[null,"A la Shop"]